bitfinex/quotes_ETHUSD_20241106
["timestamp","ask_amount","ask_price","bid_price","bid_amount"]
[1730866422598,4.62024,2590.4,2589.8,3.86129]
[1730866422905,0.7598,2590.7,2590.2,3.86069]
[1730866423202,0.7598,2590.7,2590.2,3.86058]
[1730866423399,0.7598,2590.7,2590.0,4.57962544]
[1730866423400,0.7598,2590.7,2590.5,3.86024]
[1730866423896,0.7598,2590.7,2590.3,7.72097]
[1730866424099,0.7598,2591.2,2590.6,3.8601]
[1730866424288,4.61903,2591.2,2590.6,3.8601]
[1730866424884,0.7598,2591.2,2590.6,3.8601]
[1730866425113,3.85937,2591.1,2590.4,3.86028]
[1730866425402,0.7598,2591.2,2590.5,3.86016]
[1730866425576,1.221694,2591.2,2590.6,3.86007]
[1730866425765,1.221694,2591.2,2590.5,3.86016]
[1730866425965,3.85938,2591.1,2590.5,3.86014]
[1730866426192,0.7598,2591.0,2590.1,3.86081]
[1730866426420,3.85975,2590.9,2590.2,3.86057]
[1730866426615,3.8685,2591.7,2590.1,3.86082]
[1730866426616,0.7598,2590.5,2590.1,3.86082]
[1730866426918,0.7598,2590.9,2590.4,3.8604]
[1730866427292,0.7598,2590.9,2590.5,3.86023]
[1730866427493,0.7598,2590.9,2590.6,3.86009]
[1730866427705,0.7598,2590.9,2590.6,3.86]
[1730866428939,0.7598,2590.9,2590.6,3.85999]
[1730866429217,0.7598,2590.9,2590.4,3.86032]
[1730866429424,0.7598,2590.9,2590.4,3.86031]
[1730866429722,0.7598,2590.9,2590.5,3.86023]
[1730866429925,0.40203239,2591.7,2591.2,3.85907]
[1730866429926,0.7598,2591.6,2591.2,3.85907]
[1730866430086,3.85907,2591.3,2590.8,3.85975]
[1730866430282,3.85907,2591.3,2590.6,4.67369]
[1730866430494,3.85887,2591.5,2590.8,3.85972]
[1730866430696,3.85906,2591.3,2590.8,3.85972]
[1730866431125,3.85895,2591.4,2590.8,3.85972]
[1730866431495,3.85907,2591.3,2590.6,4.6737]
[1730866431822,0.7598,2591.2,2590.4,3.86035]
[1730866431983,0.7598,2591.2,2590.7,3.85983]
[1730866432184,0.7598,2591.2,2590.7,4.631827]
[1730866432694,0.7598,2591.2,2590.6,3.86008]
[1730866434830,0.7598,2591.2,2590.7,3.85994]
[1730866436501,0.7598,2591.2,2590.8,3.85972]
[1730866436702,0.7598,2591.2,2590.7,3.85994]
[1730866437083,4.320687,2591.5,2590.3,3.86047]
[1730866437084,0.7598,2590.9,2590.3,3.86047]
[1730866437336,0.7598,2590.9,2590.4,3.8604]
[1730866438003,0.7598,2590.9,2590.5,3.86022]
[1730866441256,0.7598,2590.9,2590.3,3.86043]
[1730866441471,0.7598,2591.2,2590.9,3.85955]
[1730866441618,0.7598,2591.5,2591.0,3.73937]
[1730866442021,0.7598,2591.5,2590.8,3.85973]
[1730866443112,3.859,2591.4,2590.8,3.85973]
[1730866443411,0.7598,2591.5,2591.0,3.85946]
[1730866443723,0.7598,2591.5,2590.8,3.85973]
[1730866443724,4.61861,2591.5,2590.8,3.85973]
[1730866443932,0.90175624,2591.4,2590.8,3.85968]
[1730866444254,4.61858,2591.5,2590.9,3.85957]
[1730866444421,3.85896,2591.4,2590.8,3.85968]
[1730866444762,3.85896,2591.4,2590.8,7.7194]
[1730866444939,0.461876,2591.3,2590.9,3.85965]
[1730866445178,3.85893,2591.4,2590.8,3.85968]
[1730866445862,3.85893,2591.4,2590.9,3.85966]
[1730866446069,3.85893,2591.4,2590.8,3.85968]
[1730866446070,3.85908,2591.3,2590.8,3.85968]
[1730866446368,3.85893,2591.4,2590.8,3.85968]
[1730866446656,4.706673,2591.4,2590.7,3.85994]
[1730866446963,0.7598,2591.3,2590.8,3.85979]
[1730866448038,4.61889,2591.3,2590.4,0.8157]
[1730866448368,0.847743,2591.4,2590.4,0.8157]
[1730866448369,0.7598,2591.1,2590.4,3.86031]
[1730866448533,0.7598,2591.1,2590.6,3.86009]
[1730866448717,0.461901,2591.0,2590.6,3.86009]
[1730866448920,0.461901,2591.0,2590.2,0.8157]
[1730866449122,0.461901,2591.0,2590.3,3.86047]
[1730866449323,3.8596,2591.0,2590.4,3.8604]
[1730866449523,0.7598,2590.9,2590.4,3.8604]
[1730866450282,0.7598,2590.7,2590.0,4.57962544]
[1730866450561,0.7598,2590.7,2590.1,3.86085]
[1730866450773,0.7598,2590.7,2590.2,3.86055]
[1730866450953,1.221747,2590.7,2590.2,3.86055]
[1730866451476,1.221747,2590.7,2590.0,4.57962544]
[1730866451639,0.7598,2590.7,2590.5,3.86018]
[1730866451824,0.7598,2590.7,2590.3,3.86055]
[1730866452028,0.7598,2590.7,2590.1,4.67652]
[1730866452353,0.7598,2590.7,2590.2,3.86065]
[1730866452707,0.7598,2590.7,2590.3,3.86055]
[1730866452708,1.607731,2590.7,2590.3,3.86055]
[1730866453142,1.607731,2590.7,2590.1,3.86073]
[1730866453340,0.847931,2590.7,2590.3,3.86054]
[1730866453578,0.7598,2590.6,2590.1,3.86073]
[1730866454080,0.7598,2590.2,2589.7,3.86137]
[1730866454246,0.7598,2590.2,2590.0,3.8609]
[1730866454441,0.7598,2590.5,2590.0,3.8609]
[1730866454769,0.7598,2590.5,2590.2,3.86069]
[1730866455136,0.7598,2590.5,2590.1,3.86085]
[1730866455468,5.082091,2590.5,2589.8,3.86117]
[1730866455668,1.221781,2590.5,2589.8,3.86129]
[1730866455966,1.221781,2590.5,2589.9,3.86113]
[1730866456127,5.082121,2590.5,2589.9,3.86113]
[1730866456327,3.86042,2590.4,2589.8,3.86129]
[1730866456555,3.8607,2590.2,2589.6,8.44114544]
[1730866456796,0.7598,2590.1,2589.8,3.86121]
[1730866457403,0.7598,2590.1,2589.9,3.86112]
[1730866457560,0.7598,2590.1,2589.8,3.86121]
[1730866458176,0.7598,2590.1,2589.6,4.57962544]
[1730866458402,1.221852,2590.1,2589.5,3.86162]
[1730866458564,5.082792,2590.1,2589.5,3.86162]
[1730866458899,5.082792,2590.1,2589.3,3.86197]
[1730866458900,3.86101,2590.0,2589.3,3.86197]
[1730866459201,3.86131,2589.8,2589.2,8.44179544]
[1730866459699,3.86131,2589.8,2589.2,4.57962544]
[1730866459916,0.462111,2589.7,2589.2,8.44181544]
[1730866460280,0.462111,2589.7,2589.3,3.86204]
[1730866461018,0.7598,2590.9,2589.7,0.8273]
[1730866461193,3.85825,2591.9,2590.5,3.86015]
[1730866461369,0.7598,2591.1,2590.5,3.86015]
[1730866461567,0.7598,2591.1,2590.3,0.8273]
[1730866461568,3.85955,2591.0,2590.3,0.8273]
[1730866461797,3.85955,2591.0,2590.3,4.68785]
[1730866462106,3.85954,2591.0,2590.3,4.68785]
[1730866462414,0.7598,2591.1,2590.5,3.86016]
[1730866462769,0.7598,2591.1,2590.3,9.26747544]
[1730866462965,0.7598,2591.1,2590.6,3.8601]
[1730866464073,0.7598,2591.1,2590.6,0.38601]
[1730866464281,0.7598,2591.1,2590.9,3.8596]
[1730866464490,0.7598,2591.1,2590.5,3.86022]
[1730866465023,0.7598,2591.1,2590.4,3.8604]
[1730866465320,0.7598,2591.1,2590.7,3.85983]
[1730866465720,0.7598,2591.1,2590.5,3.86011]
[1730866465884,4.61874,2591.4,2590.5,5.17293554]
[1730866466090,4.61874,2591.4,2590.7,3.85988]
[1730866466390,0.7598,2591.4,2590.5,1.31275554]
[1730866466720,0.7598,2591.4,2590.6,3.86008]
[1730866467023,0.7598,2591.4,2590.7,3.85994]
[1730866468722,0.7598,2591.4,2590.8,3.85979]
[1730866468891,3.85912,2591.3,2590.7,3.85994]
[1730866469076,0.7598,2591.4,2590.7,3.85994]
[1730866469278,0.7598,2591.1,2590.5,3.86024]
[1730866469505,1.221702,2591.1,2590.7,3.85994]
[1730866469707,0.7598,2591.1,2590.7,3.85994]
[1730866469911,0.7598,2591.1,2590.9,3.85966]
[1730866470929,0.7598,2591.1,2590.9,3.85956]
[1730866471984,0.7598,2591.1,2590.9,3.85964]
[1730866473908,0.7598,2591.1,2590.9,3.85956]
[1730866474230,0.7598,2591.1,2590.9,3.85964]
[1730866476056,0.7598,2591.1,2590.8,3.85978]
[1730866476636,0.7598,2591.1,2590.5,3.8602]
[1730866476936,0.7598,2591.1,2590.6,3.86007]
[1730866477432,0.461913,2591.0,2590.6,3.86007]
[1730866478821,0.461913,2591.0,2590.5,3.86016]
[1730866479589,0.461913,2591.0,2590.5,7.72031]
[1730866479790,0.461913,2591.0,2590.5,3.86015]
[1730866479989,0.461913,2591.0,2590.6,3.86008]
[1730866480431,0.461913,2591.0,2590.5,3.86015]
[1730866481501,0.461913,2591.0,2590.5,7.7203]
[1730866481833,0.461913,2591.0,2590.5,3.86015]
[1730866482397,0.48311746,2590.9,2590.5,3.86015]
[1730866482903,0.461913,2591.0,2590.6,3.86]
[1730866483059,0.7598,2591.1,2590.7,3.85987]
[1730866485409,0.7598,2591.1,2590.5,3.86016]
[1730866485613,0.7598,2591.1,2590.5,7.72031]
[1730866485842,0.7598,2591.1,2590.5,3.86015]
[1730866486042,0.7598,2591.1,2590.5,3.86014]
[1730866486043,0.461902,2591.0,2590.5,3.86014]
[1730866486463,0.7598,2591.1,2590.3,5.40692544]
[1730866486666,4.6192,2591.1,2590.5,3.86014]
[1730866486873,0.7598,2591.1,2590.5,3.86014]
[1730866487055,0.7598,2591.1,2590.7,3.85993]
[1730866487259,0.461915,2591.0,2590.7,3.85993]
[1730866489361,0.7598,2591.1,2590.7,3.85993]
[1730866490033,4.61919,2591.1,2590.5,3.86014]
[1730866490276,0.7598,2591.1,2590.5,3.86014]
[1730866490475,0.7598,2591.1,2590.6,3.86007]
[1730866490659,0.46191,2591.0,2590.6,3.86007]
[1730866491773,4.32144,2591.0,2590.3,4.68776]
[1730866491979,4.32144,2591.0,2590.5,3.86025]
[1730866493076,0.7598,2590.7,2590.3,3.86046]
[1730866493375,0.7598,2590.7,2590.4,3.8604]
[1730866493937,0.7598,2590.7,2590.5,3.86015]
[1730866494170,0.46191,2591.0,2590.5,7.72032]
[1730866494171,0.7598,2590.9,2590.5,7.72032]
[1730866494378,0.7598,2590.9,2590.5,3.86015]
[1730866497076,1.267908,2590.9,2590.5,3.86015]
[1730866497277,0.7598,2590.9,2590.5,3.86015]
[1730866497477,0.7598,2590.9,2590.2,3.86059]
[1730866497478,3.85995,2590.8,2590.2,3.86059]
[1730866497704,3.85996,2590.7,2590.1,3.86075]
[1730866498172,3.85995,2590.8,2590.1,3.86075]
[1730866498408,3.8604,2590.4,2589.7,3.86137]
[1730866498719,3.86104,2590.0,2589.5,3.86165]
[1730866499075,3.86094,2590.1,2589.5,3.86163]
[1730866499413,4.6209,2590.0,2589.4,3.86189]
[1730866499923,4.62084,2590.0,2589.5,3.8617]
[1730866500119,4.62084,2590.0,2589.3,3.86195]
[1730866500120,1.607978,2590.0,2589.3,3.86195]
[1730866500268,3.86121,2589.9,2589.2,4.63144]
[1730866500470,3.86121,2589.9,2588.9,4.63184]
[1730866500471,4.62097,2589.9,2588.9,4.63184]
[1730866500770,3.86149,2589.7,2589.1,3.86234]
[1730866500970,0.7598,2589.9,2589.5,3.86172]
[1730866501174,0.7598,2590.2,2589.8,3.8612]
[1730866501378,0.7598,2590.2,2589.9,3.86115]
[1730866501990,3.86033,2590.5,2589.9,4.63035]
[1730866501991,4.62013,2590.5,2589.9,4.63035]
[1730866502239,0.462013,2590.4,2589.9,4.63035]
[1730866502871,0.462013,2590.4,2589.9,0.7693]
[1730866503073,0.7598,2590.0,2589.4,0.7693]
[1730866503379,0.7598,2590.0,2589.3,3.86195]
[1730866503575,0.7598,2590.0,2589.5,3.86172]
[1730866503826,0.7598,2590.3,2590.0,3.86097]
[1730866503981,4.61993,2590.6,2589.8,3.8613]
[1730866504184,4.61993,2590.6,2590.1,3.86084]
[1730866504800,0.7598,2590.6,2590.1,3.86084]
[1730866504973,0.7598,2590.6,2590.1,3.86076]
[1730866505173,0.7598,2590.5,2590.0,3.86094]
[1730866505794,0.7598,2590.5,2589.7,0.7693]
[1730866506125,0.7598,2590.5,2589.9,3.86104]
[1730866506303,0.7598,2590.5,2590.0,3.861]
[1730866506720,0.7598,2590.5,2589.4,0.7693]
[1730866507019,0.7598,2589.9,2589.4,3.86179]
[1730866507726,0.7598,2589.9,2589.3,3.86192]
[1730866507899,0.7598,2589.9,2589.5,3.86174]
[1730866508100,0.7598,2589.9,2589.3,3.86192]
[1730866508101,0.7598,2590.3,2589.6,0.84653053]
[1730866508301,0.7598,2590.3,2589.8,3.86117]
[1730866508628,0.7598,2590.1,2589.4,4.57962544]
[1730866508839,0.7598,2590.1,2589.9,3.86105]
[1730866509331,0.7598,2590.5,2590.0,3.8609]
[1730866509521,1.221777,2590.5,2590.0,3.8609]
[1730866509722,0.7598,2590.5,2590.1,3.86075]
[1730866510541,0.7598,2590.5,2590.2,3.86064]
[1730866510832,0.7598,2590.5,2590.1,3.86075]
[1730866510833,0.7598,2590.8,2590.1,3.86075]
[1730866511043,0.7598,2590.8,2589.9,0.07721168]
[1730866511206,0.7598,2590.8,2590.4,3.8603]
[1730866511385,3.85942,2591.1,2590.5,3.86015]
[1730866511386,0.7598,2591.0,2590.5,3.86015]
[1730866511587,4.61872,2591.4,2590.8,0.7693]
[1730866511817,4.61872,2591.4,2590.8,4.62909]
[1730866512043,4.61872,2591.4,2590.8,0.7693]
[1730866512393,3.85908,2591.3,2590.7,3.85986]
[1730866513126,4.61872,2591.4,2590.7,3.85986]
[1730866513484,0.461872,2591.3,2590.8,3.85981]
[1730866513770,4.61872,2591.4,2590.8,3.85981]
[1730866514470,0.7598,2591.4,2590.9,3.85954]
[1730866514776,0.7598,2591.4,2590.7,3.85996]
[1730866514777,4.61873,2591.4,2590.7,3.85996]
[1730866515265,4.61873,2591.4,2590.8,3.85975]
[1730866515578,5.466468,2591.4,2590.8,3.85975]
[1730866515725,5.466468,2591.4,2590.7,7.7198]
[1730866515936,0.7598,2591.4,2590.9,3.85955]
[1730866517378,4.61876,2591.4,2590.7,3.85991]
[1730866517590,3.85868,2591.6,2590.8,0.7819]
[1730866517751,0.7598,2591.5,2590.9,3.85953]
[1730866518074,0.461848,2591.4,2590.9,3.85953]
[1730866518285,0.7598,2591.5,2591.0,3.8595]
[1730866518441,0.7598,2591.5,2590.9,3.85953]
[1730866519135,0.7598,2591.5,2591.0,3.8595]
[1730866519761,0.7598,2591.5,2591.1,3.85936]
[1730866520152,1.221648,2591.5,2591.1,3.85936]
[1730866520358,1.221648,2591.5,2591.0,3.8594]
[1730866520778,1.221648,2591.5,2591.1,3.85934]
[1730866520988,0.7598,2591.5,2591.1,3.85934]
[1730866521279,4.6186,2591.5,2590.9,3.85953]
[1730866521633,0.7598,2591.5,2590.9,3.85953]
[1730866521837,4.61858,2591.5,2590.9,3.85953]
[1730866522351,0.7598,2591.5,2590.9,3.85953]
[1730866522559,0.461844,2591.4,2590.9,3.85953]
[1730866522932,0.461844,2591.4,2590.9,3.85958]
[1730866523380,4.320774,2591.4,2590.9,3.85958]
[1730866523577,4.320774,2591.4,2590.7,7.71966]
[1730866523881,4.320774,2591.4,2590.7,7.71968]
[1730866524029,4.3671474,2591.3,2590.7,3.85983]
[1730866524730,0.7598,2591.1,2590.6,4.57962544]
[1730866525587,0.7598,2591.1,2590.7,3.85992]
[1730866525888,0.7598,2591.1,2590.8,3.85975]
[1730866526054,0.7598,2591.1,2590.7,3.85992]
[1730866526249,0.7598,2591.1,2590.8,3.85978]
[1730866526633,0.7598,2591.1,2590.7,3.85986]
[1730866526934,0.5080574,2591.3,2590.8,3.85976]
[1730866527134,0.5080574,2591.3,2590.9,3.85965]
[1730866527351,0.7598,2591.4,2591.0,3.85942]
[1730866527899,4.61884,2591.4,2590.8,7.71943]
[1730866528234,4.61884,2591.4,2590.8,3.85971]
[1730866528939,4.61881,2591.4,2590.8,3.85971]
[1730866529137,4.61881,2591.4,2590.8,7.71943]
[1730866529138,0.461881,2591.3,2590.8,7.71943]
[1730866529430,0.461881,2591.3,2590.8,3.85971]
[1730866529739,0.461881,2591.3,2590.9,3.85961]
[1730866529962,0.7598,2591.4,2591.0,3.85951]
[1730866530282,3.85915,2591.3,2590.7,3.85989]
[1730866530586,0.7598,2591.4,2590.9,3.85965]
[1730866531279,0.7598,2591.4,2590.8,3.85972]
[1730866531280,0.7598,2591.4,2591.0,3.85949]
[1730866531650,0.7598,2591.4,2591.0,3.85941]
[1730866531871,0.7598,2591.4,2591.1,3.85922]
[1730866532196,0.7598,2591.4,2591.0,3.85941]
[1730866532701,4.61785,2591.7,2591.0,3.8594]
[1730866532856,4.61785,2591.7,2591.1,3.85931]
[1730866533057,5.46546,2591.7,2591.2,3.8592]
[1730866533404,1.60691,2591.7,2591.2,3.8592]
[1730866533726,4.61777,2591.7,2591.2,3.8592]
[1730866534052,0.7593,2591.7,2591.2,3.85909]
[1730866534505,4.61777,2591.7,2591.2,3.85909]
[1730866535284,4.61777,2591.7,2591.0,8.43900544]
[1730866535502,3.85877,2591.5,2591.0,8.43900544]
[1730866535704,3.85891,2591.4,2590.8,3.85971]
[1730866535919,0.7593,2591.3,2590.8,7.71943]
[1730866536097,0.7593,2591.3,2590.7,0.7683]
[1730866536098,0.7593,2591.3,2591.0,3.85943]
[1730866536264,0.7593,2591.6,2591.1,3.85926]
[1730866536589,1.221079,2591.6,2591.1,3.85926]
[1730866537304,1.221079,2591.6,2591.2,3.85919]
[1730866538522,1.221079,2591.6,2591.1,3.85934]
[1730866538722,3.85849,2591.7,2591.0,4.57962544]
[1730866538723,0.7593,2591.7,2591.0,4.57962544]
[1730866539020,0.7593,2591.7,2591.4,4.57962544]
[1730866539387,0.7593,2592.0,2591.5,3.85869]
[1730866539588,3.85817,2591.9,2591.4,9.20681544]
[1730866539785,4.320097,2591.8,2591.4,5.34792544]
[1730866539989,0.461747,2591.8,2591.4,4.57962544]
[1730866540186,0.461747,2591.8,2591.3,3.85896]
[1730866540187,4.320127,2591.8,2591.3,3.85896]
[1730866540412,0.461747,2591.8,2591.3,3.85896]
[1730866540612,4.320157,2591.8,2591.3,3.85896]
[1730866540816,0.8178437,2591.7,2591.3,3.85896]
[1730866541415,0.8178437,2591.7,2591.3,3.85894]
[1730866541600,0.7593,2592.0,2591.5,3.85875]
[1730866541934,2.14814509,2592.7,2591.3,3.85894]
[1730866541935,0.7593,2592.4,2592.2,3.85769]
[1730866542085,0.7593,2592.4,2591.7,3.85844]
[1730866542086,3.85774,2592.2,2591.7,3.85844]
[1730866542285,3.85706,2592.7,2590.9,3.85953]
[1730866542286,0.7593,2592.0,2591.3,3.85896]
[1730866542534,0.7593,2591.9,2591.4,3.85884]
[1730866542887,0.7593,2591.9,2591.5,3.85867]
[1730866543639,4.61749,2591.9,2591.3,7.71791]
[1730866543805,0.7593,2591.9,2591.3,3.85895]
[1730866544013,3.8584,2591.8,2591.3,3.85895]
[1730866544209,0.7598,2591.6,2591.3,3.85895]
[1730866545199,0.7598,2591.6,2591.4,3.85889]
[1730866545400,0.7598,2591.6,2591.4,3.85882]
[1730866545626,0.7598,2591.9,2591.5,3.85867]
[1730866546197,0.7598,2591.9,2591.5,7.71735]
[1730866546411,4.61763,2592.2,2591.5,3.85872]
[1730866546612,0.385783,2592.1,2591.6,3.8585]
[1730866546882,0.385783,2592.1,2591.6,7.71702]
[1730866547054,4.243753,2592.1,2591.6,3.8585]
[1730866547750,0.385783,2592.1,2591.6,3.8585]
[1730866547949,0.8861243,2592.0,2591.6,3.8585]
[1730866548453,0.8861243,2592.0,2591.6,3.85852]
[1730866548739,0.8861243,2592.0,2591.6,3.85851]
[1730866548904,0.8861243,2592.0,2591.7,3.85844]
[1730866549099,0.7598,2592.2,2591.7,3.85844]
[1730866549401,0.7598,2592.2,2591.9,3.85817]
[1730866550515,0.7598,2592.2,2591.9,7.71627]
[1730866550847,0.7598,2592.2,2591.9,3.8581]
[1730866551003,0.7598,2592.5,2592.0,3.85795]
[1730866551198,0.7598,2592.5,2592.2,7.71532]
[1730866551516,0.7598,2592.5,2592.2,3.85764]
[1730866551706,0.7598,2592.5,2592.1,3.85787]
[1730866552042,0.5002741,2592.4,2592.1,3.85787]
[1730866552907,0.5002741,2592.4,2592.1,3.85775]
[1730866553106,0.7598,2592.5,2592.1,3.85775]
[1730866553514,3.85744,2592.4,2591.9,3.85808]
[1730866553770,0.7598,2592.5,2591.9,3.85808]
[1730866553906,0.7598,2592.5,2592.1,3.85775]
[1730866554104,0.7598,2592.5,2592.2,3.85764]
[1730866554511,0.7598,2592.5,2592.2,3.85772]
[1730866554748,0.7598,2592.5,2592.1,7.71553]
[1730866555063,0.7598,2592.5,2592.2,3.85771]
[1730866555243,0.04211872,2592.4,2592.1,3.85775]
[1730866555412,0.7598,2592.5,2592.1,3.85775]
[1730866555611,0.7598,2592.5,2592.3,3.85754]
[1730866556262,0.7598,2592.5,2592.4,3.85742]
[1730866556439,0.7598,2592.5,2592.3,3.85747]
[1730866557121,0.7598,2592.5,2592.3,7.71497]
[1730866557448,0.7598,2592.5,2592.2,3.85772]
[1730866557659,0.7598,2592.5,2592.3,3.85756]
[1730866558412,0.7598,2592.5,2592.1,3.85775]
[1730866558628,0.7598,2592.5,2592.2,3.85765]
[1730866559156,0.7598,2592.5,2592.1,3.85775]
[1730866559712,5.464473,2592.5,2591.9,7.71613]
[1730866559912,3.85743,2592.4,2591.9,3.85804]
[1730866560325,1.3098,2592.4,2591.5,4.65219]
[1730866560527,3.80767,2591.8,2591.2,3.85919]
[1730866560855,0.7598,2591.9,2591.1,0.07717903]
[1730866561063,0.7598,2592.3,2591.8,3.8582]
[1730866561717,0.7598,2592.3,2591.9,3.85813]
[1730866561930,0.7598,2592.3,2591.8,3.8582]
[1730866562268,0.7598,2592.3,2591.4,4.57962544]
[1730866562269,3.8578,2592.2,2591.6,3.85853]
[1730866562481,0.46176,2592.2,2591.4,3.85884]
[1730866562663,0.7598,2592.1,2591.2,0.7935]
[1730866562830,3.85803,2592.0,2591.5,3.85866]
[1730866563258,3.85833,2591.8,2591.3,3.85903]
[1730866563462,3.85829,2591.9,2591.4,3.85891]
[1730866563690,7.71655,2591.9,2591.3,3.85903]
[1730866563975,4.705895,2591.9,2591.3,3.85903]
[1730866564188,4.705895,2591.9,2591.4,3.85882]
[1730866564331,8.564185,2591.9,2591.3,3.85898]
[1730866564676,4.705895,2591.9,2591.3,3.85898]
[1730866564974,0.7598,2592.0,2591.1,3.85936]
[1730866565176,0.7598,2592.0,2591.6,3.85852]
[1730866565480,0.7598,2592.0,2591.4,5.37312544]
[1730866565630,0.7598,2592.0,2591.6,3.85853]
[1730866566331,4.6179,2592.0,2591.4,13.09077544]
[1730866566531,0.7598,2592.0,2591.4,9.23194544]
[1730866566764,1.221568,2592.0,2591.4,13.09076544]
[1730866567153,5.079598,2592.0,2591.4,13.09076544]
[1730866567333,5.079598,2592.0,2591.4,9.23194544]
[1730866567535,5.079598,2592.0,2591.4,13.09076544]
[1730866567735,5.079598,2592.0,2591.4,13.09078544]
[1730866567935,4.61783,2592.0,2591.5,3.85875]
[1730866568170,4.61762,2592.2,2591.6,3.85853]
[1730866568362,4.61762,2592.2,2591.4,13.09072544]
[1730866568572,3.85795,2592.1,2591.4,13.09071544]
[1730866568769,3.85795,2592.1,2591.5,3.85875]
[1730866569078,0.847557,2592.1,2591.5,3.85875]
[1730866569286,3.85791,2592.1,2591.5,3.85875]
[1730866569511,3.85791,2592.1,2591.4,9.23191544]
[1730866569714,3.85791,2592.1,2591.5,3.85866]
[1730866570014,3.85791,2592.1,2591.6,3.85861]
[1730866570362,3.85791,2592.1,2591.5,3.85865]
[1730866570573,3.85791,2592.1,2591.5,4.78182754]
[1730866570776,3.85791,2592.1,2591.6,3.8586]
[1730866571073,0.7598,2592.2,2591.6,3.85852]
[1730866571361,4.61753,2592.2,2591.7,3.85846]
[1730866572710,4.61753,2592.2,2591.6,3.85852]
[1730866572862,0.7598,2592.2,2591.6,3.85852]
[1730866573064,3.85791,2592.1,2591.5,0.92317754]
[1730866573306,7.71591,2592.1,2591.6,3.85861]
[1730866573608,3.85791,2592.1,2591.5,0.92317754]
[1730866573762,4.61081,2592.1,2591.5,0.92317754]
[1730866573968,3.85818,2591.9,2591.4,4.65233]
[1730866574169,0.7529,2592.1,2591.2,0.8051]
[1730866574408,0.7529,2591.5,2591.0,8.43903544]
[1730866574565,4.61168,2591.5,2590.9,0.8051]
[1730866574767,3.85944,2591.1,2590.7,0.8051]
[1730866574972,0.7529,2591.0,2590.2,9.24536544]
[1730866575277,3.86019,2590.6,2589.9,3.86113]
[1730866575583,4.61355,2590.3,2589.6,3.86157]
[1730866575781,4.61355,2590.3,2589.6,3.8615]
[1730866575979,3.86079,2590.2,2589.6,0.46666]
[1730866576178,3.86079,2590.2,2589.5,4.66684]
[1730866576393,3.86079,2590.2,2589.3,8.44155544]
[1730866576394,3.86079,2590.2,2589.3,4.57962544]
[1730866576666,3.86079,2590.2,2589.7,3.86144]
[1730866576875,0.01,2590.9,2590.1,3.86075]
[1730866576876,3.86,2590.7,2590.1,3.86075]
[1730866577076,3.86,2590.7,2589.9,3.93824419]
[1730866577077,4.631975,2590.7,2589.9,3.93824419]
[1730866577291,4.631975,2590.7,2589.9,3.86103]
[1730866577506,3.85973,2590.9,2589.9,0.07721643]
[1730866577697,3.8599,2590.8,2590.1,3.86075]
[1730866577892,3.8599,2590.8,2590.1,7.72151]
[1730866578241,3.86012,2590.6,2589.9,3.86103]
[1730866578610,0.7529,2590.5,2589.5,0.8051]
[1730866578807,8.4754,2589.9,2589.2,3.86206]
[1730866579109,0.7529,2590.2,2589.6,3.86156]
[1730866579325,0.7529,2590.2,2589.7,3.86143]
[1730866579474,0.7529,2590.2,2589.6,3.86156]
[1730866579673,0.7529,2590.2,2589.6,3.86151]
[1730866579981,0.7529,2590.2,2589.8,3.86125]
[1730866580380,0.7529,2590.2,2589.8,3.86119]
[1730866580687,4.61316,2590.5,2589.9,3.86109]
[1730866580969,0.7529,2590.5,2590.0,3.86097]
[1730866581172,0.7529,2590.5,2590.0,4.247067]
[1730866581377,3.7529,2590.8,2590.3,3.86054]
[1730866581619,3.0,2590.8,2590.5,3.86025]
[1730866582128,3.0,2590.8,2590.5,7.72041]
[1730866582430,7.61235,2591.1,2590.4,4.57962544]
[1730866582722,3.7529,2591.1,2590.7,3.85994]
[1730866582929,3.0,2591.1,2590.7,3.85994]
[1730866583233,3.0,2591.1,2590.9,3.85961]
[1730866583586,3.0,2591.1,2590.7,3.85987]
[1730866584134,3.0,2591.1,2590.5,3.86012]
[1730866584290,3.0,2591.1,2590.7,3.85994]
[1730866584507,3.68591,2591.1,2590.6,3.86001]
[1730866584712,3.0,2591.1,2590.7,3.85987]
[1730866585706,0.7529,2591.4,2590.7,3.85987]
[1730866585707,3.85914,2591.3,2590.7,3.85987]
[1730866586017,3.85914,2591.3,2590.8,3.8598]
[1730866586330,3.85944,2591.1,2590.5,3.86016]
[1730866586535,3.85944,2591.1,2590.6,3.85999]
[1730866586706,3.85906,2591.3,2590.4,4.57962544]
[1730866586909,0.7529,2591.4,2590.8,3.85972]
[1730866587136,4.61185,2591.4,2590.8,3.85972]
[1730866587336,3.85908,2591.3,2590.8,3.85971]
[1730866587537,0.7529,2591.4,2590.8,7.71943]
[1730866587733,0.7529,2591.4,2590.9,3.85965]
[1730866587934,1.214073,2591.4,2590.6,3.86001]
[1730866588147,3.85919,2591.3,2590.6,7.72003]
[1730866588312,3.85922,2591.2,2590.6,3.86001]
[1730866588512,3.85906,2591.3,2590.6,3.86001]
[1730866588734,7.71824,2591.3,2590.7,3.85994]
[1730866588940,3.85922,2591.2,2590.7,3.85994]
[1730866589137,0.847118,2591.2,2590.7,3.85994]
[1730866589342,3.85963,2591.0,2590.4,4.57962544]
[1730866589553,4.706408,2591.2,2590.6,3.86003]
[1730866590049,4.706408,2591.2,2590.6,3.86002]
[1730866590254,3.85938,2591.1,2590.6,3.86002]